[Event "Live Chess"]
[Site "Chess.com"]
[Date "2024.06.01"]
[Round "-"]
[White "jk0110"]
[Black "kylet1990"]
[Result "1-0"]
[WhiteElo "1237"]
[BlackElo "735"]
[TimeControl "300"]
[EndTime "13:57:47 PDT"]
[Termination "jk0110 won by checkmate"]

1. e4 {[%clk 0:04:56.7]} 1... c6 {[%clk 0:04:58.9]} 2. Nf3 {[%clk 0:04:54.6]}
2... d5 {[%clk 0:04:58.2]} 3. Nc3 {[%clk 0:04:53.4]} 3... dxe4 {[%clk
0:04:57.1]} 4. Nxe4 {[%clk 0:04:53.3]} 4... Bf5 {[%clk 0:04:55.3]} 5. Ng3 {[%clk
0:04:51.9]} 5... Bg6 {[%clk 0:04:53.9]} 6. h4 {[%clk 0:04:51]} 6... h5 {[%clk
0:04:52]} 7. Ne5 {[%clk 0:04:47]} 7... Nd7 {[%clk 0:04:48.2]} 8. Nxg6 {[%clk
0:04:30.3]} 8... fxg6 {[%clk 0:04:45.4]} 9. Qf3 {[%clk 0:04:20.2]} 9... Ngf6
{[%clk 0:04:41.3]} 10. Bc4 {[%clk 0:04:08.4]} 10... Ne5 {[%clk 0:04:38.7]} 11.
Qb3 {[%clk 0:03:54.1]} 11... Nxc4 {[%clk 0:04:26]} 12. Qxc4 {[%clk 0:03:52.5]}
12... Qd5 {[%clk 0:04:18.4]} 13. Qxd5 {[%clk 0:03:41.2]} 13... Nxd5 {[%clk
0:04:16.8]} 14. d4 {[%clk 0:03:35.7]} 14... O-O-O {[%clk 0:04:14.2]} 15. O-O
{[%clk 0:03:33.2]} 15... e6 {[%clk 0:04:10.9]} 16. Bg5 {[%clk 0:03:30.4]} 16...
Rd6 {[%clk 0:04:07.6]} 17. c3 {[%clk 0:03:25.1]} 17... Kd7 {[%clk 0:04:00.6]}
18. Rfe1 {[%clk 0:03:16]} 18... Be7 {[%clk 0:03:56.8]} 19. Ne4 {[%clk
0:03:07.2]} 19... Bxg5 {[%clk 0:03:48.1]} 20. hxg5 {[%clk 0:03:02]} 20... Nf4
{[%clk 0:03:37.1]} 21. Nxd6 {[%clk 0:02:54.1]} 21... Kxd6 {[%clk 0:03:36]} 22.
Re4 {[%clk 0:02:46.7]} 22... Nd3 {[%clk 0:03:32.2]} 23. Rd1 {[%clk 0:02:40.5]}
23... Nxb2 {[%clk 0:03:29.9]} 24. Rde1 {[%clk 0:02:39.2]} 24... Kc7 {[%clk
0:03:24.1]} 25. Rxe6 {[%clk 0:02:37.1]} 25... Nd3 {[%clk 0:03:20.8]} 26. Re7+
{[%clk 0:02:33.2]} 26... Kb6 {[%clk 0:03:19.6]} 27. Rb1+ {[%clk 0:02:31.6]}
27... Ka6 {[%clk 0:03:16]} 28. Rbxb7 {[%clk 0:02:22.3]} 28... Rf8 {[%clk
0:03:10.4]} 29. c4 {[%clk 0:02:04.4]} 29... Rxf2 {[%clk 0:03:07.7]} 30. Rxa7+
{[%clk 0:02:02.3]} 30... Kb6 {[%clk 0:03:05.9]} 31. Reb7# {[%clk 0:02:00.2]} 1-0

[Event "Live Chess"]
[Site "Chess.com"]
[Date "2024.06.01"]
[Round "-"]
[White "MaksymYurii"]
[Black "Queensandpawns"]
[Result "0-1"]
[WhiteElo "941"]
[BlackElo "2382"]
[TimeControl "300"]
[EndTime "13:57:49 PDT"]
[Termination "Queensandpawns won by checkmate"]

1. e4 {[%clk 0:04:55.3]} 1... d5 {[%clk 0:04:59.9]} 2. exd5 {[%clk 0:04:53.8]}
2... c6 {[%clk 0:04:59.8]} 3. Nf3 {[%clk 0:04:41]} 3... Nf6 {[%clk 0:04:57]} 4.
Nc3 {[%clk 0:04:39.2]} 4... cxd5 {[%clk 0:04:55]} 5. d4 {[%clk 0:04:35.3]} 5...
Bg4 {[%clk 0:04:54.1]} 6. h3 {[%clk 0:04:27.4]} 6... Bh5 {[%clk 0:04:42.4]} 7.
g4 {[%clk 0:04:26.3]} 7... Bg6 {[%clk 0:04:41.3]} 8. Ne5 {[%clk 0:04:23.6]} 8...
Nc6 {[%clk 0:04:37.8]} 9. Nxc6 {[%clk 0:04:17.7]} 9... bxc6 {[%clk 0:04:37.7]}
10. Bg5 {[%clk 0:03:57.4]} 10... Ne4 {[%clk 0:04:29.1]} 11. Nxe4 {[%clk
0:03:46.7]} 11... Bxe4 {[%clk 0:04:29]} 12. f3 {[%clk 0:03:43.2]} 12... Bg6
{[%clk 0:04:27]} 13. c4 {[%clk 0:03:33.6]} 13... h6 {[%clk 0:04:25.7]} 14. Bf4
{[%clk 0:03:28.9]} 14... h5 {[%clk 0:04:24.3]} 15. cxd5 {[%clk 0:03:21.6]} 15...
hxg4 {[%clk 0:04:22.9]} 16. fxg4 {[%clk 0:03:19]} 16... Qxd5 {[%clk 0:04:22.5]}
17. Rg1 {[%clk 0:02:56.4]} 17... Qe4+ {[%clk 0:04:20.4]} 18. Qe2 {[%clk
0:02:51.9]} 18... Qxf4 {[%clk 0:04:18.8]} 19. Bg2 {[%clk 0:02:47.4]} 19... Qg3+
{[%clk 0:04:16.8]} 20. Kd1 {[%clk 0:02:45.5]} 20... Qd6 {[%clk 0:04:14.4]} 21.
Rc1 {[%clk 0:02:43.1]} 21... Qxd4+ {[%clk 0:04:12.9]} 22. Ke1 {[%clk 0:02:40.2]}
22... Qxg1+ {[%clk 0:04:11.9]} 23. Kd2 {[%clk 0:02:37.3]} 23... Rd8+ {[%clk
0:04:10.9]} 24. Kc3 {[%clk 0:02:30.7]} 24... Qxc1+ {[%clk 0:04:07.7]} 25. Qc2
{[%clk 0:02:27.8]} 25... Qxc2+ {[%clk 0:04:06.6]} 26. Kb4 {[%clk 0:02:25]} 26...
e5+ {[%clk 0:04:06.5]} 27. Ka5 {[%clk 0:02:23]} 27... Qc5+ {[%clk 0:04:06]} 28.
Ka6 {[%clk 0:02:21.5]} 28... Qb6# {[%clk 0:04:05.4]} 0-1

[Event "Live Chess"]
[Site "Chess.com"]
[Date "2024.06.01"]
[Round "-"]
[White "upoe610"]
[Black "DylanMeyer1"]
[Result "1-0"]
[WhiteElo "2235"]
[BlackElo "1712"]
[TimeControl "300"]
[EndTime "13:58:06 PDT"]
[Termination "upoe610 won by resignation"]

1. c4 {[%clk 0:04:57.6]} 1... d5 {[%clk 0:04:59.9]} 2. cxd5 {[%clk 0:04:54.1]}
2... Qxd5 {[%clk 0:04:59.8]} 3. Nf3 {[%clk 0:04:53.7]} 3... Qd6 {[%clk
0:04:59.7]} 4. d4 {[%clk 0:04:52.5]} 4... Nf6 {[%clk 0:04:59.6]} 5. Nc3 {[%clk
0:04:51.3]} 5... e6 {[%clk 0:04:59.2]} 6. e4 {[%clk 0:04:50.7]} 6... a6 {[%clk
0:04:58.8]} 7. e5 {[%clk 0:04:50.1]} 7... Qd5 {[%clk 0:04:58.3]} 8. Nxd5 {[%clk
0:04:49]} 8... exd5 {[%clk 0:04:58.2]} 9. exf6 {[%clk 0:04:47.3]} 9... gxf6
{[%clk 0:04:56.1]} 10. Bf4 {[%clk 0:04:45.6]} 10... Be7 {[%clk 0:04:56]} 11. Rc1
{[%clk 0:04:43.9]} 11... c6 {[%clk 0:04:54.4]} 12. Bd3 {[%clk 0:04:42.7]} 12...
Be6 {[%clk 0:04:54.3]} 13. O-O {[%clk 0:04:42.3]} 13... Nd7 {[%clk 0:04:54]} 14.
Qb3 {[%clk 0:04:37.5]} 14... O-O {[%clk 0:04:49.3]} 15. Qc2 {[%clk 0:04:34.8]}
15... Kh8 {[%clk 0:04:41.9]} 16. Bxh7 {[%clk 0:04:32.4]} 16... Rg8 {[%clk
0:04:35.9]} 17. Bxg8 {[%clk 0:04:31.4]} 17... Rxg8 {[%clk 0:04:34.1]} 18. Bg3
{[%clk 0:04:31.3]} 18... Nf8 {[%clk 0:04:28.3]} 19. Qd2 {[%clk 0:04:30.1]} 19...
Rg6 {[%clk 0:04:25.2]} 20. Nh4 {[%clk 0:04:28.2]} 20... Nh7 {[%clk 0:04:16]} 21.
Nxg6+ {[%clk 0:04:26.7]} 21... fxg6 {[%clk 0:04:15.9]} 22. Rce1 {[%clk
0:04:26.2]} 1-0

[Event "Live Chess"]
[Site "Chess.com"]
[Date "2024.06.01"]
[Round "-"]
[White "Bradfield133"]
[Black "PughmanChess"]
[Result "1/2-1/2"]
[WhiteElo "1880"]
[BlackElo "1379"]
[TimeControl "300"]
[EndTime "13:58:09 PDT"]
[Termination "Game drawn by agreement"]

1. c4 {[%clk 0:04:57.9]} 1... f5 {[%clk 0:04:55.2]} 2. g3 {[%clk 0:04:52.2]}
2... Nf6 {[%clk 0:04:54]} 3. Bg2 {[%clk 0:04:51.3]} 3... e6 {[%clk 0:04:53.6]}
4. Nc3 {[%clk 0:04:49.1]} 4... Be7 {[%clk 0:04:53.5]} 5. e3 {[%clk 0:04:47.3]}
5... O-O {[%clk 0:04:53.4]} 6. Nge2 {[%clk 0:04:46]} 6... d6 {[%clk 0:04:53.3]}
7. d3 {[%clk 0:04:43.8]} 7... e5 {[%clk 0:04:45.3]} 8. O-O {[%clk 0:04:42.5]}
8... Nc6 {[%clk 0:04:26.6]} 9. Qd2 {[%clk 0:04:29.7]} 9... a5 {[%clk 0:04:23.6]}
10. b3 {[%clk 0:04:26.7]} 10... Qe8 {[%clk 0:04:08.6]} 11. f4 {[%clk 0:04:19.1]}
11... e4 {[%clk 0:04:02.9]} 12. dxe4 {[%clk 0:04:14.3]} 12... fxe4 {[%clk
0:04:01.3]} 13. Nxe4 {[%clk 0:04:06.1]} 13... Nxe4 {[%clk 0:03:59.4]} 14. Bxe4
{[%clk 0:04:04.7]} 14... Bf6 {[%clk 0:03:58.3]} 15. Bd5+ {[%clk 0:04:03.6]}
15... Kh8 {[%clk 0:03:57.1]} 16. Rb1 {[%clk 0:03:59.5]} 16... Nb4 {[%clk
0:03:54]} 17. Nd4 {[%clk 0:03:37.9]} 17... Nxd5 {[%clk 0:03:50.2]} 18. cxd5
{[%clk 0:03:35.7]} 18... Bh3 {[%clk 0:03:35]} 19. Re1 {[%clk 0:03:19.5]} 19...
Bxd4 {[%clk 0:03:17.7]} 20. Qxd4 {[%clk 0:03:15.9]} 20... c5 {[%clk 0:03:06.5]}
21. dxc6 {[%clk 0:03:11.7]} 21... Qxc6 {[%clk 0:03:04.6]} 22. Rb2 {[%clk
0:02:59.1]} 22... Rac8 {[%clk 0:02:58.5]} 23. Rd2 {[%clk 0:02:40]} 23... Rfd8
{[%clk 0:02:48.3]} 24. Bb2 {[%clk 0:02:36.8]} 24... Rc7 {[%clk 0:02:45.3]} 25.
Qd5 {[%clk 0:02:26.3]} 25... Qxd5 {[%clk 0:02:38.1]} 26. Rxd5 {[%clk 0:02:16.6]}
26... Rc2 {[%clk 0:02:37.6]} 27. Be5 {[%clk 0:02:06.7]} 27... Rxa2 {[%clk
0:02:21.9]} 28. Rxd6 {[%clk 0:01:56.9]} 28... Rxd6 {[%clk 0:02:19.5]} 29. Bxd6
{[%clk 0:01:55.2]} 29... b5 {[%clk 0:02:15.6]} 30. e4 {[%clk 0:01:43]} 30... Kg8
{[%clk 0:02:04.1]} 31. e5 {[%clk 0:01:40.6]} 31... Kf7 {[%clk 0:02:01.1]} 32.
Bc5 {[%clk 0:01:22.1]} 32... Ke6 {[%clk 0:01:57.4]} 33. Bf2 {[%clk 0:01:18.4]}
33... Rb2 {[%clk 0:01:46.1]} 34. Re3 {[%clk 0:01:08.5]} 34... Rb1+ {[%clk
0:01:21.3]} 35. Be1 {[%clk 0:01:06.7]} 35... a4 {[%clk 0:01:16.5]} 36. bxa4
{[%clk 0:01:02]} 36... bxa4 {[%clk 0:01:15.7]} 37. Kf2 {[%clk 0:00:58.5]} 37...
Rb3 {[%clk 0:01:06.5]} 38. Rxb3 {[%clk 0:00:49.9]} 38... axb3 {[%clk 0:01:05.3]}
39. Bc3 {[%clk 0:00:48.8]} 39... h5 {[%clk 0:01:01.7]} 40. Ke3 {[%clk
0:00:46.2]} 40... Bf5 {[%clk 0:01:00.8]} 41. Kd4 {[%clk 0:00:43.3]} 41... Bc2
{[%clk 0:00:53.4]} 42. Kc5 {[%clk 0:00:38.2]} 42... g6 {[%clk 0:00:50.1]} 43.
Bd4 {[%clk 0:00:35.3]} 43... Kd7 {[%clk 0:00:47.5]} 44. Bb2 {[%clk 0:00:32]}
44... Ke6 {[%clk 0:00:45.7]} 1/2-1/2

[Event "Live Chess"]
[Site "Chess.com"]
[Date "2024.06.01"]
[Round "-"]
[White "MagnersCarlsberg2870"]
[Black "Isambard_Thomas"]
[Result "0-1"]
[WhiteElo "1777"]
[BlackElo "2164"]
[TimeControl "300"]
[EndTime "13:58:26 PDT"]
[Termination "Isambard_Thomas won by resignation"]

1. d4 {[%clk 0:04:56.8]} 1... Nf6 {[%clk 0:04:58.5]} 2. Nf3 {[%clk 0:04:51.4]}
2... d5 {[%clk 0:04:57.4]} 3. e3 {[%clk 0:04:50.3]} 3... c5 {[%clk 0:04:56.5]}
4. Bd3 {[%clk 0:04:49.4]} 4... Nc6 {[%clk 0:04:55.7]} 5. c3 {[%clk 0:04:48.7]}
5... e6 {[%clk 0:04:55]} 6. Nbd2 {[%clk 0:04:47.8]} 6... Bd7 {[%clk 0:04:54.3]}
7. Qe2 {[%clk 0:04:47]} 7... a6 {[%clk 0:04:53.7]} 8. O-O {[%clk 0:04:45.8]}
8... c4 {[%clk 0:04:52.7]} 9. Bc2 {[%clk 0:04:44.7]} 9... Bd6 {[%clk 0:04:52.6]}
10. e4 {[%clk 0:04:42.5]} 10... dxe4 {[%clk 0:04:51.8]} 11. Nxe4 {[%clk
0:04:41.4]} 11... Nxe4 {[%clk 0:04:51.5]} 12. Qxe4 {[%clk 0:04:40.6]} 12... f5
{[%clk 0:04:39.7]} 13. Qe2 {[%clk 0:04:38.1]} 13... O-O {[%clk 0:04:36.7]} 14.
Ne5 {[%clk 0:04:36.9]} 14... Nxe5 {[%clk 0:04:30.3]} 15. dxe5 {[%clk 0:04:35.6]}
15... Bc5 {[%clk 0:04:29.2]} 16. Be3 {[%clk 0:04:34.2]} 16... Be7 {[%clk
0:04:21.2]} 17. Qxc4 {[%clk 0:04:32.5]} 17... Rc8 {[%clk 0:04:18.9]} 18. Qb3
{[%clk 0:04:24.9]} 18... b5 {[%clk 0:04:11.2]} 19. Rad1 {[%clk 0:04:22.1]} 19...
Qc7 {[%clk 0:04:09.4]} 20. Bd4 {[%clk 0:04:18.9]} 20... Rb8 {[%clk 0:03:12.3]}
21. Bb1 {[%clk 0:04:17.1]} 21... a5 {[%clk 0:03:07]} 22. Qc2 {[%clk 0:04:15.9]}
22... Bc6 {[%clk 0:03:01.2]} 23. Qe2 {[%clk 0:04:13.9]} 23... Bd5 {[%clk
0:02:52.8]} 24. Qh5 {[%clk 0:04:08.8]} 24... Qc6 {[%clk 0:02:45.3]} 25. f3
{[%clk 0:04:02.7]} 25... b4 {[%clk 0:02:39.8]} 26. g4 {[%clk 0:04:01.3]} 26...
Bxf3 {[%clk 0:02:33.2]} 27. h3 {[%clk 0:03:37.6]} 27... Bxd1 {[%clk 0:02:27.6]}
28. Rxd1 {[%clk 0:03:35.4]} 28... bxc3 {[%clk 0:02:24.3]} 29. gxf5 {[%clk
0:03:32.9]} 29... c2 {[%clk 0:02:05.9]} 30. Bxc2 {[%clk 0:03:29.3]} 30... Qxc2
{[%clk 0:02:04.9]} 31. Rf1 {[%clk 0:03:26.3]} 31... Bc5 {[%clk 0:02:00.2]} 32.
Bxc5 {[%clk 0:03:17.8]} 32... Qxc5+ {[%clk 0:01:59.1]} 33. Kh2 {[%clk
0:03:16.6]} 33... Rxb2+ {[%clk 0:01:57.7]} 0-1

[Event "Live Chess"]
[Site "Chess.com"]
[Date "2024.06.01"]
[Round "-"]
[White "willc-h99"]
[Black "bonantagulo"]
[Result "1-0"]
[WhiteElo "2622"]
[BlackElo "2070"]
[TimeControl "300"]
[EndTime "13:58:29 PDT"]
[Termination "willc-h99 won on time"]

1. d4 {[%clk 0:04:56]} 1... Nf6 {[%clk 0:04:54.1]} 2. Bg5 {[%clk 0:04:55.2]}
2... Ne4 {[%clk 0:04:53.1]} 3. h4 {[%clk 0:04:53]} 3... c5 {[%clk 0:04:50.3]} 4.
d5 {[%clk 0:04:51.7]} 4... Qb6 {[%clk 0:04:26.6]} 5. Bc1 {[%clk 0:04:47.9]} 5...
e6 {[%clk 0:04:01.6]} 6. dxe6 {[%clk 0:04:30.5]} 6... dxe6 {[%clk 0:03:52.1]} 7.
Nd2 {[%clk 0:04:26.2]} 7... Nxd2 {[%clk 0:03:21.5]} 8. Bxd2 {[%clk 0:04:25.3]}
8... Qxb2 {[%clk 0:03:19.1]} 9. Rb1 {[%clk 0:04:21.5]} 9... Qxa2 {[%clk
0:03:18]} 10. Rh3 {[%clk 0:04:01.8]} 10... Nc6 {[%clk 0:03:15.2]} 11. Bc3 {[%clk
0:03:30.9]} 11... e5 {[%clk 0:02:55.3]} 12. Rg3 {[%clk 0:03:21.1]} 12... Nd4
{[%clk 0:02:41.2]} 13. Rb2 {[%clk 0:02:55.9]} 13... Qc4 {[%clk 0:02:14.4]} 14.
e4 {[%clk 0:02:48]} 14... Qe6 {[%clk 0:02:12.8]} 15. Bxd4 {[%clk 0:02:38.2]}
15... cxd4 {[%clk 0:02:07.1]} 16. Bb5+ {[%clk 0:02:27]} 16... Bd7 {[%clk
0:02:05.7]} 17. Nf3 {[%clk 0:02:25.8]} 17... f6 {[%clk 0:01:55.2]} 18. Qd3
{[%clk 0:02:18.8]} 18... Rc8 {[%clk 0:01:18]} 19. Bxd7+ {[%clk 0:01:55]} 19...
Qxd7 {[%clk 0:01:17.2]} 20. Qb3 {[%clk 0:01:54.3]} 20... a5 {[%clk 0:01:05.5]}
21. Qxb7 {[%clk 0:01:26.4]} 21... Bb4+ {[%clk 0:01:04.2]} 22. Rxb4 {[%clk
0:01:25.5]} 22... axb4 {[%clk 0:01:02.8]} 23. Qxb4 {[%clk 0:01:25.4]} 23... Rxc2
{[%clk 0:00:46]} 24. Nxe5 {[%clk 0:01:00]} 24... fxe5 {[%clk 0:00:35]} 25. Qb8+
{[%clk 0:00:59]} 25... Rc8 {[%clk 0:00:30.7]} 26. Qxe5+ {[%clk 0:00:57.5]} 26...
Qe7 {[%clk 0:00:26.5]} 27. Qb5+ {[%clk 0:00:54.2]} 27... Kd8 {[%clk 0:00:25.6]}
28. Qd5+ {[%clk 0:00:52.5]} 28... Qd7 {[%clk 0:00:21.4]} 29. Qg5+ {[%clk
0:00:51.1]} 29... Kc7 {[%clk 0:00:18.7]} 30. Qa5+ {[%clk 0:00:49.5]} 30... Kd6
{[%clk 0:00:08.5]} 31. Qd5+ {[%clk 0:00:39]} 31... Kc7 {[%clk 0:00:08]} 32. Qa5+
{[%clk 0:00:35]} 32... Kd6 {[%clk 0:00:07.3]} 33. Rg5 {[%clk 0:00:33.8]} 33...
Rc1+ {[%clk 0:00:05.9]} 34. Kd2 {[%clk 0:00:32.4]} 34... Qc6 {[%clk 0:00:05.8]}
35. Qe5+ {[%clk 0:00:30]} 35... Kd7 {[%clk 0:00:04.8]} 36. Qxg7+ {[%clk
0:00:23]} 36... Kc8 {[%clk 0:00:04.7]} 37. Qxh8+ {[%clk 0:00:21.6]} 37... Kb7
{[%clk 0:00:04.6]} 38. Qxh7+ {[%clk 0:00:18.5]} 38... Ka6 {[%clk 0:00:03.2]} 39.
Rg6 {[%clk 0:00:17.4]} 39... Rc2+ {[%clk 0:00:03.1]} 40. Ke1 {[%clk 0:00:15.8]}
40... Rc1+ {[%clk 0:00:02.6]} 41. Ke2 {[%clk 0:00:15.2]} 41... Rc2+ {[%clk
0:00:02.5]} 42. Kf3 {[%clk 0:00:14.6]} 42... Rc3+ {[%clk 0:00:02.1]} 43. Kg4
{[%clk 0:00:12.5]} 1-0

[Event "Live Chess"]
[Site "Chess.com"]
[Date "2024.06.01"]
[Round "-"]
[White "crais6"]
[Black "wadsy27"]
[Result "0-1"]
[WhiteElo "1636"]
[BlackElo "2546"]
[TimeControl "300"]
[EndTime "13:58:44 PDT"]
[Termination "wadsy27 won by resignation"]

1. d4 {[%clk 0:04:56.1]} 1... Nf6 {[%clk 0:04:59.1]} 2. Nc3 {[%clk 0:04:49.7]}
2... c5 {[%clk 0:04:58.7]} 3. d5 {[%clk 0:04:45.8]} 3... d6 {[%clk 0:04:58.4]}
4. Bg5 {[%clk 0:04:41.5]} 4... g6 {[%clk 0:04:57.2]} 5. Nf3 {[%clk 0:04:38.7]}
5... Bg7 {[%clk 0:04:56.9]} 6. Qd2 {[%clk 0:04:36.1]} 6... a6 {[%clk 0:04:55.8]}
7. a4 {[%clk 0:04:33.4]} 7... h6 {[%clk 0:04:51.4]} 8. Bh4 {[%clk 0:04:29.1]}
8... O-O {[%clk 0:04:49.5]} 9. e4 {[%clk 0:04:18.8]} 9... Bg4 {[%clk 0:04:47.5]}
10. Be2 {[%clk 0:04:17.5]} 10... Nbd7 {[%clk 0:04:46.5]} 11. O-O {[%clk
0:04:15.5]} 11... g5 {[%clk 0:04:42.6]} 12. Bg3 {[%clk 0:04:10.1]} 12... Nh5
{[%clk 0:04:42]} 13. Rfe1 {[%clk 0:03:31.5]} 13... Nxg3 {[%clk 0:04:38.7]} 14.
hxg3 {[%clk 0:03:30]} 14... Qa5 {[%clk 0:04:37.9]} 15. Qd3 {[%clk 0:03:17.6]}
15... Qb4 {[%clk 0:04:33.4]} 16. Nd2 {[%clk 0:03:12.7]} 16... Ne5 {[%clk
0:04:23.5]} 17. Qe3 {[%clk 0:03:03.9]} 17... Bxe2 {[%clk 0:04:22.6]} 18. Nxe2
{[%clk 0:03:00.3]} 18... Ng4 {[%clk 0:04:13.9]} 19. Qf3 {[%clk 0:02:56.2]} 19...
Qxd2 {[%clk 0:04:09.9]} 20. Qxg4 {[%clk 0:02:54.1]} 20... Qxc2 {[%clk
0:04:07.7]} 21. Rab1 {[%clk 0:02:45.6]} 21... f5 {[%clk 0:04:06.3]} 22. Qh5
{[%clk 0:02:34]} 22... fxe4 {[%clk 0:04:03]} 23. Nc3 {[%clk 0:02:23.4]} 23...
Qxf2+ {[%clk 0:04:01.6]} 24. Kh2 {[%clk 0:02:20.2]} 24... e3 {[%clk 0:03:56]}
25. Rf1 {[%clk 0:02:16.5]} 25... Qxf1 {[%clk 0:03:51.8]} 26. Rxf1 {[%clk
0:02:13.7]} 26... Rxf1 {[%clk 0:03:51.7]} 27. Qe2 {[%clk 0:02:10.1]} 27... Raf8
{[%clk 0:03:46.2]} 28. Qxe3 {[%clk 0:02:08.6]} 28... Be5 {[%clk 0:03:45.6]} 29.
Ne4 {[%clk 0:02:00.3]} 29... R1f4 {[%clk 0:03:33.1]} 30. gxf4 {[%clk 0:01:54.3]}
30... Bxf4+ {[%clk 0:03:32.3]} 31. Qxf4 {[%clk 0:01:52.7]} 31... Rxf4 {[%clk
0:03:31.2]} 0-1

[Event "Live Chess"]
[Site "Chess.com"]
[Date "2024.06.01"]
[Round "-"]
[White "nitrofish07"]
[Black "koekoekoe"]
[Result "1-0"]
[WhiteElo "2097"]
[BlackElo "2029"]
[TimeControl "300"]
[EndTime "13:58:49 PDT"]
[Termination "nitrofish07 won by resignation"]

1. d4 {[%clk 0:04:58.8]} 1... d5 {[%clk 0:04:59]} 2. c4 {[%clk 0:04:57.5]} 2...
c6 {[%clk 0:04:57.7]} 3. Nf3 {[%clk 0:04:56.5]} 3... Nf6 {[%clk 0:04:56.4]} 4.
g3 {[%clk 0:04:56]} 4... e6 {[%clk 0:04:55.7]} 5. Bg2 {[%clk 0:04:55.3]} 5... b6
{[%clk 0:04:54.2]} 6. O-O {[%clk 0:04:54.9]} 6... Bb7 {[%clk 0:04:53.8]} 7. Nc3
{[%clk 0:04:54.6]} 7... Be7 {[%clk 0:04:52.6]} 8. Qd3 {[%clk 0:04:52.7]} 8...
O-O {[%clk 0:04:51.8]} 9. e4 {[%clk 0:04:52.1]} 9... dxc4 {[%clk 0:04:49.1]} 10.
Qxc4 {[%clk 0:04:50.6]} 10... Ba6 {[%clk 0:04:44.7]} 11. Qb3 {[%clk 0:04:46]}
11... Bxf1 {[%clk 0:04:43.7]} 12. Bxf1 {[%clk 0:04:44]} 12... c5 {[%clk
0:04:31.4]} 13. d5 {[%clk 0:04:37]} 13... exd5 {[%clk 0:04:30]} 14. exd5 {[%clk
0:04:36.9]} 14... Nbd7 {[%clk 0:04:26.5]} 15. Bf4 {[%clk 0:04:35.2]} 15... Nh5
{[%clk 0:04:17.9]} 16. Be3 {[%clk 0:04:25.6]} 16... g6 {[%clk 0:04:08]} 17. Rd1
{[%clk 0:04:23.6]} 17... Bg5 {[%clk 0:04:04]} 18. Bxg5 {[%clk 0:04:19.4]} 18...
f6 {[%clk 0:04:03.4]} 19. Bh6 {[%clk 0:04:17.7]} 19... Rf7 {[%clk 0:04:01.9]}
20. d6 {[%clk 0:04:15.7]} 20... Ne5 {[%clk 0:03:51.7]} 21. Nxe5 {[%clk
0:04:13.1]} 21... fxe5 {[%clk 0:03:51.6]} 22. Bc4 {[%clk 0:04:11.7]} 22... Qf6
{[%clk 0:03:45.5]} 23. Bxf7+ {[%clk 0:04:10]} 23... Qxf7 {[%clk 0:03:45.4]} 24.
Nd5 {[%clk 0:04:07.3]} 24... Qf3 {[%clk 0:03:38.7]} 25. Ne7+ {[%clk 0:04:02.5]}
25... Kh8 {[%clk 0:03:36.1]} 26. Qxf3 {[%clk 0:04:01.5]} 1-0

[Event "Live Chess"]
[Site "Chess.com"]
[Date "2024.06.01"]
[Round "-"]
[White "gobbles19"]
[Black "ACM42"]
[Result "1-0"]
[WhiteElo "2262"]
[BlackElo "2164"]
[TimeControl "300"]
[EndTime "13:58:55 PDT"]
[Termination "gobbles19 won on time"]

1. e4 {[%clk 0:04:56.6]} 1... e6 {[%clk 0:04:58.9]} 2. d3 {[%clk 0:04:53.1]}
2... d5 {[%clk 0:04:57.4]} 3. Qe2 {[%clk 0:04:51.7]} 3... Nf6 {[%clk 0:04:46]}
4. Nf3 {[%clk 0:04:51]} 4... c5 {[%clk 0:04:43.8]} 5. g3 {[%clk 0:04:50.4]} 5...
Nc6 {[%clk 0:04:43]} 6. c3 {[%clk 0:04:49.1]} 6... Be7 {[%clk 0:04:42.3]} 7. Bg2
{[%clk 0:04:48.7]} 7... O-O {[%clk 0:04:41.6]} 8. O-O {[%clk 0:04:48.4]} 8... b5
{[%clk 0:04:39.9]} 9. Rd1 {[%clk 0:04:42]} 9... b4 {[%clk 0:04:37.8]} 10. Nbd2
{[%clk 0:04:39.9]} 10... a5 {[%clk 0:04:35.4]} 11. Nf1 {[%clk 0:04:35.7]} 11...
Ba6 {[%clk 0:04:33]} 12. exd5 {[%clk 0:04:34.9]} 12... exd5 {[%clk 0:04:23.5]}
13. h3 {[%clk 0:04:33.9]} 13... Re8 {[%clk 0:04:22.1]} 14. Qc2 {[%clk
0:04:25.7]} 14... Qb6 {[%clk 0:04:16.8]} 15. g4 {[%clk 0:04:20.3]} 15... c4
{[%clk 0:03:59.1]} 16. dxc4 {[%clk 0:04:17.5]} 16... Bxc4 {[%clk 0:03:40]} 17.
Be3 {[%clk 0:04:04.6]} 17... b3 {[%clk 0:03:25.7]} 18. Qf5 {[%clk 0:03:43.7]}
18... Qa6 {[%clk 0:03:08.1]} 19. axb3 {[%clk 0:03:26.9]} 19... Bxb3 {[%clk
0:03:05.9]} 20. Re1 {[%clk 0:03:23.7]} 20... a4 {[%clk 0:02:47.4]} 21. Ng3
{[%clk 0:03:19.9]} 21... Qc8 {[%clk 0:02:44.9]} 22. Qf4 {[%clk 0:03:15.5]} 22...
Qd7 {[%clk 0:02:36.6]} 23. g5 {[%clk 0:03:12.9]} 23... Bd6 {[%clk 0:02:30.6]}
24. Qh4 {[%clk 0:03:08.9]} 24... Ne4 {[%clk 0:02:29.3]} 25. Bf4 {[%clk
0:02:45.8]} 25... a3 {[%clk 0:01:57.1]} 26. bxa3 {[%clk 0:02:38.5]} 26... Nxc3
{[%clk 0:01:55.1]} 27. Bxd6 {[%clk 0:02:36.7]} 27... Qxd6 {[%clk 0:01:52.6]} 28.
Nf5 {[%clk 0:02:31.5]} 28... Qg6 {[%clk 0:01:47.8]} 29. N3d4 {[%clk 0:02:19.1]}
29... Bc4 {[%clk 0:01:38.3]} 30. Nxc6 {[%clk 0:02:14.3]} 30... Qxc6 {[%clk
0:01:04.9]} 31. Ne7+ {[%clk 0:02:09.5]} 31... Rxe7 {[%clk 0:01:04.2]} 32. Rxe7
{[%clk 0:02:09.1]} 32... Qc5 {[%clk 0:00:59.4]} 33. Rae1 {[%clk 0:02:04.7]}
33... Bb5 {[%clk 0:00:49.6]} 34. Qb4 {[%clk 0:01:48.1]} 34... Qxb4 {[%clk
0:00:47.7]} 35. axb4 {[%clk 0:01:47.5]} 35... g6 {[%clk 0:00:46.8]} 36. Rb7
{[%clk 0:01:33.3]} 36... Bc4 {[%clk 0:00:40.4]} 37. Rd7 {[%clk 0:01:21.4]} 37...
Rb8 {[%clk 0:00:30.3]} 38. Ree7 {[%clk 0:01:20.2]} 38... d4 {[%clk 0:00:26.6]}
39. Rxd4 {[%clk 0:01:17.3]} 39... Ne2+ {[%clk 0:00:24]} 40. Rxe2 {[%clk
0:01:15.4]} 40... Bxe2 {[%clk 0:00:23.9]} 41. Bc6 {[%clk 0:01:04.8]} 41... f6
{[%clk 0:00:21]} 42. gxf6 {[%clk 0:00:53.6]} 42... Kf7 {[%clk 0:00:19.9]} 43. b5
{[%clk 0:00:50.6]} 43... Kxf6 {[%clk 0:00:19.1]} 44. f3 {[%clk 0:00:45.6]} 44...
Rb6 {[%clk 0:00:18]} 45. Rb4 {[%clk 0:00:39.4]} 45... Bd3 {[%clk 0:00:16.8]} 46.
Kf2 {[%clk 0:00:38.6]} 46... Ke5 {[%clk 0:00:16.1]} 47. Ke3 {[%clk 0:00:37.7]}
47... Bf1 {[%clk 0:00:15.4]} 48. Re4+ {[%clk 0:00:36.6]} 48... Kd6 {[%clk
0:00:14.3]} 49. Rd4+ {[%clk 0:00:34.9]} 49... Kc5 {[%clk 0:00:13.2]} 50. Rd5+
{[%clk 0:00:34.3]} 50... Kb4 {[%clk 0:00:11.6]} 51. Rd4+ {[%clk 0:00:28.8]}
51... Kc5 {[%clk 0:00:10.3]} 52. Rd7 {[%clk 0:00:23.8]} 52... Bxb5 {[%clk
0:00:07.3]} 53. Bxb5 {[%clk 0:00:23.7]} 53... Kxb5 {[%clk 0:00:06.5]} 54. Rxh7
{[%clk 0:00:23.4]} 54... Rf6 {[%clk 0:00:05.8]} 55. Ke4 {[%clk 0:00:21.4]} 55...
Kc5 {[%clk 0:00:05]} 56. Rd7 {[%clk 0:00:21.1]} 56... Kc6 {[%clk 0:00:03.9]} 57.
Rd1 {[%clk 0:00:19.9]} 57... Rf5 {[%clk 0:00:03]} 58. f4 {[%clk 0:00:18.6]}
58... Rh5 {[%clk 0:00:01.9]} 59. Rd3 {[%clk 0:00:17.9]} 59... Kc5 {[%clk
0:00:00.8]} 60. Rg3 {[%clk 0:00:17.2]} 1-0